Cogmind - Beta 9.6 @@@ ROGUE MODE // 2020.04.18 @ 07:40:01 Player: Mjolnir Result: Destroyed by S-10 Pest with Light Assault Rifle Performance ------------- Evolutions (0) 0 Regions Visited (2) 400 Robots Destroyed (30) 150 Value Destroyed (807) 807 Prototype IDs (0) 0 Alien Tech Used (0) 0 Bonus (0) 0 TOTAL SCORE: 1357 Bonus ------- None Cogmind --------- Core Integrity 0/250 Matter 186/300 Energy 156/160 System Corruption 3% Temperature Cool (2) Movement Walking (150) Ox1 Location -10/Mines Parts ------- > --- POWER (1) -------- Light Nuclear Core > --- PROPULSION (2) --- Aluminum Leg Aluminum Leg > --- UTILITY (2) ------ Large Storage Unit Large Storage Unit > --- WEAPON (2) ------- Light Assault Rifle Plasma Cutter > --- INVENTORY (16) --- Ion Engine Heat Sink Cooling System Medium Storage Unit Medium Storage Unit Signal Interpreter Core Shielding Hacking Suite Hacking Suite Datajack Peak State ------------ > --- POWER ------------ Light Nuclear Core > --- PROPULSION ------- Aluminum Leg Aluminum Leg > --- UTILITY ---------- Large Storage Unit Large Storage Unit > --- WEAPON ----------- Light Assault Rifle Plasma Cutter > --- INVENTORY -------- Ion Engine Heat Sink Cooling System Medium Storage Unit Medium Storage Unit Signal Interpreter Core Shielding Hacking Suite Hacking Suite Datajack [Rating: 11] Favorites ----------- Power Light Ion Engine Engine Light Ion Engine Power Core Light Nuclear Core Propulsion Aluminum Leg Leg Aluminum Leg Utility Small Storage Unit Device Cooling System Storage Small Storage Unit Weapon Light Assault Rifle Energy Gun EM Pulse Gun Energy Cannon Beam Cannon Ballistic Gun Light Assault Rifle Launcher Grenade Launcher Special Weapon Plasma Cutter Special Melee Weapon Datajack Build | -11 -10 -10 ------- Run | Scr Mat Min Slots Evolved . | . . . Power . | . . . Propulsion . | . . . Utility . | . . . Weapon . | . . . Parts Attached 31 | 7 22 2 Power 6 | 2 3 1 Engine 4 | 2 2 . Core 2 | . 1 1 Reactor . | . . . Propulsion 5 | 2 3 . Treads . | . . . Leg 5 | 2 3 . Wheel . | . . . Hover . | . . . Flight . | . . . Utility 7 | 1 6 . Device 1 | . 1 . Storage 6 | 1 5 . Processor . | . . . Hackware . | . . . Protection . | . . . Artifact . | . . . Weapon 13 | 2 10 1 Energy Gun 2 | 1 1 . Energy Cannon 1 | . 1 . Ballistic Gun 4 | 1 3 . Ballistic Cannon . | . . . Launcher 2 | . 2 . Special Weapon 3 | . 2 1 Impact Weapon . | . . . Slashing Weapon . | . . . Piercing Weapon . | . . . Special Melee Weapon 1 | . 1 . Unidentified Prototypes . | . . . Parts Lost 5 | . 4 1 Power 1 | . 1 . Propulsion . | . . . Utility . | . . . Weapon 4 | . 3 1 Highest Loss Streak 3 | . 3 1 Average Slot Usage (%) 97 | . 96 100 Engine 10 | . 10 11 Core 2 | . 2 2 Leg 28 | . 28 28 Storage 26 | . 26 28 Energy Gun 3 | . 4 . Energy Cannon 4 | . 5 . Ballistic Gun 13 | . 13 14 Launcher 4 | . 2 13 Naked Turns . | . . . Heaviest Build 41 | 12 39 41 Greatest Support 20 | 20 20 20 Greatest Overweight (x) 2 | 2 1 2 Average Overweight (x) . | . . 1 Largest Inventory Capacity 16 | 6 16 16 Average Capacity 11 | 5 10 16 Most Carried 12 | 6 12 12 Average Carried 8 | 2 8 11 Final Capacity 16 | 6 16 16 Final Carried 11 | 2 11 10 Class Distribution -------------------- 93% | Mutant 6% | Scavenger-Mutant Dominant Class ---------------- Mutant | -10/Materials Mutant | -10/Mines Resources | -11 -10 -10 ----------- Run | Scr Mat Min Matter Collected 643 | 240 343 60 Remotely . | . . . Salvage Created 875 | . 815 60 Parts 64 | . 60 4 Haulers Intercepted 2 | . 2 . Recyclers Shooed 1 | . . 1 Parts Field Recycled . | . . . Retrieved Matter . | . . . Parts Self-Destructed . | . . . Prevented . | . . . Kills | -11 -10 -10 ------- Run | Scr Mat Min Combat Hostiles Destroyed 21 | . 16 5 Guns 12 | . 11 1 Cannons 3 | . 3 . AOE 6 | . 2 4 Classes Destroyed 6 | . 6 . Builder 1 | . 1 . Hauler 2 | . 2 . Operator 3 | . 3 . Watcher 3 | . 3 . Swarmer 6 | . 3 3 Grunt 15 | . 13 2 Best Kill Streak 3 | . 3 3 Combat Bots Only 3 | . 3 3 Max Kills in Single Turn 3 | . 1 3 Gunslinging . | . . . Exploded 2 | . 1 2 Melee . | . . . Uniques/NPCs Destroyed . | . . . Combat | -11 -10 -10 -------- Run | Scr Mat Min Damage Taken 1038 | . 843 195 Core 257 | . 201 56 Absorbed by Shields . | . . . Core Remaining (%) 100 | 100 . . Volleys Fired 88 | . 83 5 Largest 2 | . 2 2 Hottest 80 | . 80 50 Shots Fired 160 | . 151 9 Gun 126 | . 121 5 Cannon 17 | . 17 . Launcher 14 | . 10 4 Special 3 | . 3 . Kinetic 85 | . 80 5 Thermal 20 | . 20 . Explosive 14 | . 10 4 Electromagnetic 41 | . 41 . Robot Hit Streak 15 | . 15 7 Robot Miss Streak 3 | . 3 1 Penetration Max . | . . . Secondary Targets 1 | . 1 . Max Gunslinging Chain 1 | . 1 . Shots Hit Robots 112 | . 107 5 Core Hits 51 | . 45 6 Critical Hits 2 | . 2 . Critical Kills 1 | . 1 . Critical Parts Destroyed 1 | . 1 . Melee Attacks 2 | . 2 . Impact . | . . . Slashing . | . . . Piercing . | . . . Sneak Attacks 2 | . 2 . Combat Hostiles . | . . . Follow-up Attacks . | . . . Damage Inflicted 2001 | . 1576 425 Guns 864 | . 839 25 Cannons 248 | . 248 . Explosions 877 | . 478 399 Melee . | . . . Ramming 1 | . . 1 Kinetic 417 | . 392 25 Thermal 347 | . 347 . Explosive 789 | . 390 399 Electromagnetic 447 | . 447 . Impact . | . . . Slashing . | . . . Piercing . | . . . Highest Corruption 3 | . 3 3 Average Corruption 2 | . 2 3 Corruption Purged . | . . . Effects 24 | . 20 4 Message Errors 5 | . 4 1 Matter Fused 7 | . 6 1 Heat Flow Errors 4 | . 4 . Energy Discharges 4 | . 3 1 Targeting Errors 4 | . 3 1 Overload Shots . | . . . Overflow Damage 75 | . 33 42 Projectiles . | . . . Explosions 75 | . 33 42 Melee . | . . . Knockbacks . | . . . Impact . | . . . Kinetic . | . . . Secondary . | . . . Self-Inflicted Damage 132 | . 63 69 Shots 5 | . 2 3 Rammed . | . . . Targets Rammed 1 | . . 1 Kicked 1 | . . 1 Crushed . | . . . Highest Temperature 268 | . 268 25 Average Temperature 72 | . 74 11 Received Heat Transfer 408 | . 378 30 Siege Activations . | . . . Robots Corrupted . | . . . Combat Hostiles . | . . . Parts Fried 2 | . 2 . Impact Corruptions . | . . . Robots Melted . | . . . Combat Hostiles . | . . . Parts Melted . | . . . Heat Transferred 655 | . 655 . Parts Sabotaged . | . . . Parts Stolen . | . . . Parts Stripped . | . . . Power Chain Reactions 3 | . 3 . Missiles Intercepted . | . . . Alert | -11 -10 -10 ------- Run | Scr Mat Min Peak Influence 256 | . 198 256 Average Influence 98 | . 89 156 Maximum Alert Level 1 | . . 1 Low Security (%) 95 | 100 100 73 Level 1 4 | . . 26 Level 2 . | . . . Level 3 . | . . . Level 4 . | . . . Level 5 . | . . . High Security . | . . . Max Security . | . . . Squads Dispatched 5 | . 5 . Investigation 2 | . 2 . Extermination . | . . . Reinforcement 3 | . 3 . Assault . | . . . Garrison . | . . . Intercept . | . . . Construction Impeded . | . . . Haulers Reinforced . | . . . Stealth | -11 -10 -10 --------- Run | Scr Mat Min Distress Signals 1 | . 1 . Communications Jammed . | . . . Distress Signals . | . . . Times Spotted 35 | . 27 8 Peak Tracking Total 4 | . 4 3 Tactical Retreats 2 | . 2 . Traps | -11 -10 -10 ------- Run | Scr Mat Min Traps Triggered 3 | . 3 . Indirectly . | . . . Trap Hack Attempts . | . . . Triggered . | . . . Disarmed . | . . . Reprogrammed . | . . . Reused . | . . . Traps Extracted . | . . . Installed . | . . . Triggered . | . . . Machines | -11 -10 -10 ---------- Run | Scr Mat Min Machines Disabled 8 | . 2 6 Max in Single Turn 4 | . 1 4 Machines Sabotaged . | . . . Garrisons Compromised . | . . . Overloaded Fab Kills . | . . . Fab Network Shutdowns . | . . . Hacking | -11 -10 -10 --------- Run | Scr Mat Min Machines Accessed 3 | . 3 . Terminals 1 | . 1 . Fabricators . | . . . Repair Stations 1 | . 1 . Recycling Units 1 | . 1 . Scanalyzers . | . . . Garrison Access . | . . . Total Hacks 9 | . 9 . Successful 6 | . 6 . Failed 3 | . 3 . Catastrophic . | . . . Database Lockouts . | . . . Manual 1 | . 1 . Terminals 4 | . 4 . Fabricators . | . . . Repair Stations 3 | . 3 . Recycling Units 2 | . 2 . Scanalyzers . | . . . Garrison Access . | . . . Terminal Hacks 2 | . 2 . Alert Level 1 | . 1 . Zone Layout 1 | . 1 . Fabricator Hacks . | . . . Repair Station Hacks 2 | . 2 . Scan Component 1 | . 1 . Repair 1 | . 1 . Recycling Unit Hacks 2 | . 2 . Report Inventory 1 | . 1 . Retrieve Components 1 | . 1 . Scanalyzer . | . . . Garrison Access Hacks . | . . . Unauthorized Hacks . | . . . Terminals . | . . . Fabricators . | . . . Repair Stations . | . . . Recycling Units . | . . . Scanalyzers . | . . . Garrison Access . | . . . Data Cores Recovered . | . . . Used . | . . . Hacking Detections 1 | . 1 . Full Trace Events . | . . . Feedback Events . | . . . Feedback Blocked . | . . . Robot Schematics Acquired . | . . . Robots Built . | . . . Matter . | . . . Time . | . . . Total Robot Build Rating . | . . . Part Schematics Acquired . | . . . Parts Built . | . . . Matter . | . . . Time . | . . . Total Part Build Rating . | . . . Parts Repaired 1 | . 1 . Time 26 | . 26 . Parts Recycled . | . . . Recycled Matter . | . . . Retrieved Matter . | . . . Retrieved Components 10 | . 10 . Parts Scanalyzed . | . . . Part Schematics Acquired . | . . . Parts Damaged . | . . . Bothacking | -11 -10 -10 ------------ Run | Scr Mat Min Used RIF Installer . | . . . Robots Hacked 1 | . 1 . Non-combat 1 | . 1 . Combat . | . . . Robot Hacks Applied 1 | . 1 . no_distress 1 | . 1 . Relay Couplers Released . | . . . Robots Rewired . | . . . Allies Hacked . | . . . Hacks Repelled . | . . . Allies | -11 -10 -10 -------- Run | Scr Mat Min Total Allies . | . . . Largest Group . | . . . Highest-Rated Group . | . . . Highest-Rated Ally . | . . . Total Orders . | . . . Ally Attacks . | . . . Total Damage . | . . . Kills . | . . . Allies Corrupted . | . . . Allies Melted . | . . . Intel | -11 -10 -10 ------- Run | Scr Mat Min Robot Analysis Total . | . . . Derelict Logs Recovered 1 | . . 1 Drone Launches . | . . . Drone Recoveries . | . . . Exploration | -11 -10 -10 ------------- Run | Scr Mat Min Turns Passed 1629 | 51 1294 284 Spaces Moved 926 | 30 725 171 Core 15 | 15 . . Treads . | . . . Legs 911 | 15 725 171 Wheels . | . . . Hover . | . . . Flight . | . . . Fastest Speed 50 | 50 120 150 Average Speed 130 | 121 125 154 Slowest Speed 180 | 150 150 180 Overloaded Moves . | . . . Propulsion Burnouts . | . . . Robots Hopped . | . . . Cave-ins Triggered . | . . . Exploration Rate (%) 44 | 4 83 45 Regions Visited 2 Branch Regions 1 Pre-discovered Areas 1 | . . 1 Known Exits Taken . | . . . Unknown Exits Taken 2 | 1 1 . Scrap Searched . | . . . Spaces Dug . | . . . Terrain Destroyed 82 | . 56 26 Melee . | . . . Projectile . | . . . AOE 82 | . 56 26 Actions | -11 -10 -10 --------- Run | Scr Mat Min Total 1199 | 44 972 183 Wait 97 | . 95 2 Move 924 | 29 724 171 Hop . | . . . Pick Up 39 | 8 30 1 Fast Attach 3 | . 3 . Attach 13 | 6 6 1 Detach . | . . . Swap 15 | 1 13 1 Drop 17 | . 16 1 Fire 88 | . 83 5 Melee 2 | . 2 . Ram . | . . . Kick 1 | . . 1 Crush . | . . . Escape Stasis . | . . . Rewire . | . . . Trap . | . . . Miscellaneous . | . . . Route ------- -11/Scrapyard -10/Materials (discovered 4 exits: [*Mat x2] / [*Min x2]) -10/Mines History --------- Turn | Location | Event 15 | -11/Scrapyard | Discovered new exit (range 15) 52 | -11/Scrapyard | Entered Materials 302 | -10/Materials | Discovered new exit (range 16) 317 | -10/Materials | Build established: Mutant 414 | -10/Materials | Discovered new exit (range 14) 475 | -10/Materials | Core integrity fell below 50% 521 | -10/Materials | Lost 3 parts (1p2w) 833 | -10/Materials | Discovered new exit (range 6) 871 | -10/Materials | Repaired Med. Storage Unit 1098 | -10/Materials | Discovered new exit (range 15) 1182 | -10/Materials | Core integrity fell below 20% 1346 | -10/Materials | Entered Mines 1372 | -10/Mines | Met a Derelict bent on vengeance 1510 | -10/Mines | Learned location of Storage (-7) 1630 | -10/Mines | Destroyed by S-10 Pest with Light Assault Rifle Last Messages --------------- 01349_ System corrupted: Lgt. Assault Rifle targeting data glitched. 01349_ S-10 Pest destroyed. 01386_ 91S2:IWAPUE=RA1 GPH G 3PU> %M/N#V&XP9BT 01463_ System corrupted: Matter fused (-7). 01510_ Acquired derelict log, extracted data. World map updated: -7/Storage. 01531_ Seismic Survey Station disabled. 01553_ Kicked T-07 Excavator out of the way. 01556_ G-34 Mercenary destroyed. 01556_ Seismic Survey Station disabled. 01556_ G-47 Trooper destroyed. 01562_ R-06 Scavenger collects Aluminum Leg. 01567_ Acquired 27 matter. 01568_ Acquired 33 matter. 01569_ R-06 Scavenger collects Aluminum Leg. 01570_ System corrupted: Energy discharge (-30). 01571_ Acquired Lgt. Nuclear Core. 01574_ Dropped Lgt. Ion Engine. 01574_ R-06 Scavenger collects Lgt. Ion Engine. 01622_ Grenade Launcher destroyed. Map ----- +----------------------------------------------------+ | | | | | ???????????????????????????????????????????????? | | ???????????????????????????????????????????????? | | ?????????????????????##################????????? | | ?????????????????????# #????????? | | ?????????????????????# #????????? | | ?????????????????????# """ """ """ #????????? | | ?????????????????????# """ " " #????????? | | ?????????????????????# """ " #????????? | | ?????????????????????# #????????? | | ?????????????????????# """ "" #????????? | | ?????????????????????# """ " #????????? | | ?????????????????????# """ " " #????????? | | ?????????????????????# #????????? | | ?????????????????????# """ " " """ #????????? | | ?????????????????????# """ """ """ #????????? | | ?????????# ??????????# """ """ """ #????????? | | ?????????# ??????# #????????? | | ?????????? ### """ "" " #????????? | | ????????????????# $ """ "" #????????? | | ????????????????######s """ "" #????????? | | ?????????????????????# s #????????? | | ?????????????????????## #### ######????????? | | ??????????????????????# ##### #######???????? | | ??????????????????????# @ #???????? | | ??????????????????????# #???????? | | ??????????????????????############### #???????? | | ???????????????????????????????????## ##??????? | | ??????????????????????????????????## #??????? | | ??????????????????????????????????# ##?????? | | ??????????????????????????????????## ###???? | | ???????????????????????????????????## ##??? | | ????????????????????????????????????## #??? | | ?????????????????????????????????????# ##?? | | ?????????????????????????????????????# #?? | | ????????????????????????????????????## #?? | | ????????????????????????????????????# ##?? | | ????????????????????????????????????# ###??? | | ????????????????????????????????????## ##????? | | ????????????????????????????????????## #?????? | | ???????????????????????????????????## #?????? | | ??????????????????????????????????## ##????? | | ????????????????#####?????????????# ##???? | | ???????????????## ##????????????# ##??? | | ??????????????## ##?####??????# ##?? | | ??????????????# ### ##?????# #?? | | ??????????????# ##????# #?? | | ??????????????# ##???# ##?? | | ??????????????## ######## #???# ##??? | +----------------------------------------------------+ Best States ------------- Heat Dissipation 47 Energy Generation 14 Energy Capacity 250 Matter Stores 300 Matter Capacity 300 Sight Range 16 Terrain Scan Density 10 Evasion (%) 40 Item Schematics ----------------- None Robot Schematics ------------------ None Fabricated ------------ Nothing Alien Tech Used ----------------- None Achievements -------------- None Challenges ------------ None Game ------ Seed FortressProcessingPick Manual? 0 Play Time 00:28:45 Cumulative 10.4 hours Start 2020.04.18 @ 07:09:30 End 2020.04.18 @ 07:40:01 Sessions 1 Manual Loads 0 Difficulty Rogue Special Mode None Game No. 11 Rogue 11 Adventurer 0 Explorer 0 Win Type - Total 0 Types 0/0/0/0/0/0/0 Lore% 15 Gallery% 12 Achievement% 11 Wizard Run 0 Options --------- ASCII 0 Keyboard 0 Movement Mouse Keybinds 0 Fullscreen 2 Font 18/X11Bold Map View 76x50 Tactical HUD 1 Map Filters NONE Filters NONE Steam 1 RUN: bb141241-9c8a-49c6-9024-33beb2d99f22